fUST/lending_fUST_20250210
["ID","MTS","AMOUNT","RATE_DAILY","PERIOD"]
[352582443,1739178647499,-205.46926548,0.00011369,2]
[352582444,1739178647508,-754.98,0.00011369,2]
[352582445,1739178647519,-500.0,0.00011369,2]
[352582446,1739178647529,-580.76542839,0.00011369,2]
[352582447,1739178647539,-2892.98,0.00011369,2]
[352582448,1739178647549,-1568.35,0.00011369,2]
[352582449,1739178647559,-5541.94,0.00011369,2]
[352582450,1739178647569,-500.0,0.00011369,2]
[352582451,1739178647581,-500.0,0.00011369,2]
[352582452,1739178647592,-1220.88,0.00011369,2]
[352582453,1739178647602,-1866.68,0.00011369,2]
[352582454,1739178647613,-500.0,0.00011369,2]
[352582455,1739178647623,-175.33706479,0.00011406,2]
[352582456,1739178647633,-163.67726063,0.00011456,2]
[352582457,1739178647643,-500.0,0.00011456,2]
[352582458,1739178647653,-500.0,0.00011456,2]
[352582459,1739178647663,-500.0,0.00011506,2]
[352582460,1739178647673,-500.0,0.00011506,2]
[352582461,1739178647683,-500.0,0.00011506,2]
[352582462,1739178647694,-500.0,0.00011506,2]
[352582463,1739178647704,-500.0,0.00011506,2]
[352582464,1739178647713,-500.0,0.00011506,2]
[352582465,1739178647723,-500.0,0.00011506,2]
[352582466,1739178647733,-500.0,0.00011506,2]
[352582467,1739178647743,-558.17,0.00011506,2]
[352582468,1739178647753,-500.0,0.00011506,2]
[352582469,1739178647763,-500.0,0.00011506,2]
[352582470,1739178647774,-500.0,0.00011506,2]
[352582471,1739178647785,-500.0,0.00011506,2]
[352582472,1739178647796,-500.0,0.00011506,2]
[352582473,1739178647807,-500.0,0.00011506,2]
[352582474,1739178647819,-500.0,0.00011506,2]
[352582475,1739178647830,-500.0,0.00011506,2]
[352582476,1739178647840,-500.0,0.00011506,2]
[352582477,1739178647850,-742.11,0.00011506,2]
[352582478,1739178647861,-500.0,0.00011506,2]
[352582479,1739178647872,-500.0,0.00011506,2]
[352582480,1739178647882,-500.0,0.00011506,2]
[352582481,1739178647892,-282.63736111,0.00011506,2]
[352582482,1739178647902,-500.0,0.00011506,2]
[352582483,1739178647914,-500.0,0.00011506,2]
[352582484,1739178647925,-858.14,0.00011506,2]
[352582485,1739178647936,-500.0,0.00011506,2]
[352582486,1739178647946,-537.94,0.00011506,2]
[352582487,1739178647956,-617.4,0.00011506,2]
[352582488,1739178647966,-500.0,0.00011506,2]
[352582489,1739178647975,-500.0,0.00011506,2]
[352582490,1739178647985,-1006.77,0.00011506,2]
[352582491,1739178647994,-500.0,0.00011506,2]
[352582492,1739178648005,-500.0,0.00011506,2]
[352582493,1739178648018,-19548.37,0.00011506,2]
[352582494,1739178648029,-560.17,0.00011506,2]
[352582495,1739178648039,-1383.92,0.00011506,2]
[352582496,1739178648051,-923.08,0.00011506,2]
[352582497,1739178648061,-500.0,0.00011506,2]
[352582498,1739178648073,-2923.13,0.00011506,2]
[352582499,1739178648084,-500.0,0.00011506,2]
[352582500,1739178648096,-500.0,0.00011506,2]
[352582501,1739178648105,-500.0,0.00011506,2]
[352582502,1739178648117,-1416.35,0.00011506,2]
[352582503,1739178648128,-500.0,0.00011506,2]
[352582504,1739178648139,-716.41,0.00011506,2]
[352582505,1739178648149,-500.0,0.00011506,2]
[352582506,1739178648161,-500.0,0.00011506,2]
[352582507,1739178648171,-634.51,0.00011506,2]
[352582508,1739178648182,-506.21,0.00011506,2]
[352582509,1739178648192,-1331.53,0.00011506,2]
[352582510,1739178648204,-604.57,0.00011506,2]
[352582511,1739178648216,-500.0,0.00011506,2]
[352582512,1739178648226,-500.0,0.00011506,2]
[352582513,1739178648237,-568.08,0.00011506,2]
[352582514,1739178648248,-500.0,0.00011506,2]
[352582515,1739178648259,-756.28,0.00011506,2]
[352582516,1739178648275,-7225.64,0.00011506,2]
[352582517,1739178648286,-500.0,0.00011506,2]
[352582518,1739178648298,-599.18727519,0.00011506,2]
[352582519,1739178648309,-863.77,0.00011506,2]
[352582520,1739178648319,-904.08,0.00011506,2]
[352582521,1739178648331,-1490.65,0.00011506,2]
[352582522,1739178648342,-500.0,0.00011506,2]
[352582523,1739178648352,-500.0,0.00011506,2]
[352582524,1739178648363,-1689.31,0.00011506,2]
[352582525,1739178648375,-520.59,0.00011506,2]
[352582526,1739178648386,-754.98,0.00011506,2]
[352582527,1739178648396,-500.0,0.00011506,2]
[352582528,1739178648407,-2892.98,0.00011506,2]
[352582529,1739178648418,-1568.35,0.00011506,2]
[352582530,1739178648428,-5541.94,0.00011506,2]
[352582531,1739178648439,-500.0,0.00011506,2]
[352582532,1739178648449,-500.0,0.00011506,2]
[352582533,1739178648460,-1220.88,0.00011506,2]
[352582534,1739178648471,-1866.68,0.00011506,2]
[352582535,1739178648482,-500.0,0.00011506,2]
[352582536,1739178648492,-500.0,0.00011521,2]
[352582537,1739178648503,-1000.0,0.00011521,2]
[352582538,1739178648514,-501.62037964,0.00011521,2]
[352582539,1739178648525,-1000.0,0.00011521,2]
[352582540,1739178648536,-701.237282,0.00011521,2]
[352582541,1739178648547,-772.16059807,0.00011587,2]
[352582542,1739178648557,-500.0,0.00011643,2]
[352582543,1739178648568,-500.0,0.00011643,2]
[352582544,1739178648578,-500.0,0.00011643,2]
[352582545,1739178648589,-500.0,0.00011643,2]
[352582546,1739178648600,-500.0,0.00011643,2]
[352582547,1739178648611,-500.0,0.00011643,2]
[352582548,1739178648622,-500.0,0.00011643,2]
[352582549,1739178648633,-558.17,0.00011643,2]
[352582550,1739178648642,-500.0,0.00011643,2]
[352582551,1739178648653,-500.0,0.00011643,2]
[352582552,1739178648663,-500.0,0.00011643,2]
[352582553,1739178648674,-500.0,0.00011643,2]
[352582554,1739178648685,-500.0,0.00011643,2]
[352582555,1739178648695,-500.0,0.00011643,2]
[352582556,1739178648705,-500.0,0.00011643,2]
[352582557,1739178648715,-500.0,0.00011643,2]
[352582558,1739178648724,-500.0,0.00011643,2]
[352582559,1739178648734,-742.11,0.00011643,2]
[352582560,1739178648744,-500.0,0.00011643,2]
[352582561,1739178648753,-500.0,0.00011643,2]
[352582562,1739178648763,-500.0,0.00011643,2]
[352582563,1739178648773,-567.08,0.00011643,2]
[352582564,1739178648784,-500.0,0.00011643,2]
[352582565,1739178648794,-858.14,0.00011643,2]
[352582566,1739178648804,-500.0,0.00011643,2]
[352582567,1739178648815,-537.94,0.00011643,2]
[352582568,1739178648826,-617.4,0.00011643,2]
[352582569,1739178648835,-500.0,0.00011643,2]
[352582570,1739178648845,-500.0,0.00011643,2]
[352582571,1739178648855,-1006.77,0.00011643,2]
[352582572,1739178648865,-500.0,0.00011643,2]
[352582573,1739178648876,-500.0,0.00011643,2]
[352582574,1739178648887,-19548.37,0.00011643,2]
[352582575,1739178648897,-560.17,0.00011643,2]
[352582576,1739178648907,-1383.92,0.00011643,2]
[352582577,1739178648916,-923.08,0.00011643,2]
[352582578,1739178648928,-500.0,0.00011643,2]
[352582579,1739178648939,-2923.13,0.00011643,2]
[352582580,1739178648950,-500.0,0.00011643,2]
[352582581,1739178648961,-500.0,0.00011643,2]
[352582582,1739178648972,-500.0,0.00011643,2]
[352582583,1739178648982,-1416.35,0.00011643,2]
[352582584,1739178648993,-532.59101627,0.00011643,2]
[352582585,1739178649005,-716.41,0.00011643,2]
[352582586,1739178649018,-500.0,0.00011643,2]
[352582587,1739178649030,-500.0,0.00011643,2]
[352582588,1739178649041,-506.21,0.00011643,2]
[352582589,1739178649053,-634.51,0.00011643,2]
[352582590,1739178649064,-1331.53,0.00011643,2]
[352582591,1739178649076,-604.57,0.00011643,2]
[352582592,1739178649088,-500.0,0.00011643,2]
[352582593,1739178649100,-500.0,0.00011643,2]
[352582594,1739178649112,-568.08,0.00011643,2]
[352582595,1739178649124,-500.0,0.00011643,2]
[352582596,1739178649135,-756.28,0.00011643,2]
[352582597,1739178649147,-7225.64,0.00011643,2]
[352582598,1739178649158,-500.0,0.00011643,2]
[352582599,1739178649169,-863.77,0.00011643,2]
[352582600,1739178649181,-904.08,0.00011643,2]
[352582601,1739178649192,-1490.65,0.00011643,2]
[352582602,1739178649203,-500.0,0.00011643,2]
[352582603,1739178649214,-1689.31,0.00011643,2]
[352582604,1739178649224,-520.59,0.00011643,2]
[352582605,1739178649235,-754.98,0.00011643,2]
[352582606,1739178649245,-500.0,0.00011643,2]
[352582607,1739178649255,-2892.98,0.00011643,2]
[352582608,1739178649267,-1486.09055553,0.00011643,2]
[352582609,1739178649427,-82.25944447,0.00011643,2]
[352582610,1739178649438,-5541.94,0.00011643,2]
[352582611,1739178649551,-230.66,0.00011643,2]
[352582612,1739178649561,-500.0,0.00011643,2]
[352582613,1739178649572,-1220.88,0.00011643,2]
[352582614,1739178649582,-1866.68,0.00011643,2]
[352582615,1739178649592,-592.57567255,0.0001178,2]
[352582616,1739178649602,-158.29,0.0001178,2]
[352582617,1739178649612,-500.0,0.0001178,2]
[352582618,1739178649623,-500.0,0.0001178,2]
[352582619,1739178649632,-500.0,0.0001178,2]
[352582620,1739178649642,-500.0,0.0001178,2]
[352582621,1739178649651,-558.17,0.0001178,2]
[352582622,1739178649662,-500.0,0.0001178,2]
[352582623,1739178649671,-500.0,0.0001178,2]
[352582624,1739178649681,-500.0,0.0001178,2]
[352582625,1739178649690,-500.0,0.0001178,2]
[352582626,1739178649700,-500.0,0.0001178,2]
[352582627,1739178649710,-500.0,0.0001178,2]
[352582628,1739178649720,-500.0,0.0001178,2]
[352582629,1739178649730,-500.0,0.0001178,2]
[352582630,1739178649739,-500.0,0.0001178,2]
[352582631,1739178649749,-742.11,0.0001178,2]
[352582632,1739178649759,-500.0,0.0001178,2]
[352582633,1739178649769,-500.0,0.0001178,2]
[352582634,1739178649779,-500.0,0.0001178,2]
[352582635,1739178649788,-858.14,0.0001178,2]
[352582636,1739178649798,-500.0,0.0001178,2]
[352582637,1739178649807,-537.94,0.0001178,2]
[352582638,1739178649817,-617.4,0.0001178,2]
[352582639,1739178649827,-630.35,0.0001178,2]
[352582640,1739178649836,-500.0,0.0001178,2]
[352582641,1739178649846,-1006.77,0.0001178,2]
[352582642,1739178649855,-19548.37,0.0001178,2]
[352582643,1739178649864,-560.17,0.0001178,2]
[352582644,1739178649873,-1383.92,0.0001178,2]
[352582645,1739178649882,-923.08,0.0001178,2]
[352582646,1739178649891,-500.0,0.0001178,2]
[352582647,1739178649901,-2923.13,0.0001178,2]
[352582648,1739178649910,-500.0,0.0001178,2]
[352582649,1739178649920,-500.0,0.0001178,2]
[352582650,1739178649929,-1416.35,0.0001178,2]
[352582651,1739178649939,-716.41,0.0001178,2]
[352582652,1739178649948,-500.0,0.0001178,2]
[352582653,1739178649958,-500.0,0.0001178,2]
[352582654,1739178649967,-634.51,0.0001178,2]
[352582655,1739178649976,-506.21,0.0001178,2]
[352582656,1739178649985,-1331.53,0.0001178,2]
[352582657,1739178649995,-604.57,0.0001178,2]
[352582658,1739178650007,-394.98875047,0.0001178,2]
[352582659,1739178650018,-500.0,0.0001178,2]
[352582660,1739178650028,-568.08,0.0001178,2]
[352582661,1739178650038,-500.0,0.0001178,2]
[352582662,1739178650049,-756.28,0.0001178,2]
[352582663,1739178650059,-7225.64,0.0001178,2]
[352582664,1739178650069,-500.0,0.0001178,2]
[352582665,1739178650079,-863.77,0.0001178,2]
[352582666,1739178650090,-904.08,0.0001178,2]
[352582667,1739178650099,-1490.65,0.0001178,2]
[352582668,1739178650109,-500.0,0.0001178,2]
[352582669,1739178650118,-1689.31,0.0001178,2]
[352582670,1739178650127,-520.59,0.0001178,2]
[352582671,1739178650137,-754.98,0.0001178,2]
[352582672,1739178650146,-500.0,0.0001178,2]
[352582673,1739178650156,-2892.98,0.0001178,2]
[352582674,1739178650165,-1568.35,0.0001178,2]
[352582675,1739178650175,-5541.94,0.0001178,2]
[352582676,1739178650184,-1220.88,0.0001178,2]
[352582677,1739178650194,-1866.68,0.0001178,2]
[352582678,1739178650203,-151.0,0.000118,2]
[352582679,1739178650212,-1000.0,0.0001186,2]
[352582680,1739178650222,-151.0,0.000119,2]
[352582681,1739178650231,-500.0,0.00011917,2]
[352582682,1739178650240,-500.0,0.00011917,2]
[352582683,1739178650249,-500.0,0.00011917,2]
[352582684,1739178650258,-500.0,0.00011917,2]
[352582685,1739178650269,-558.17,0.00011917,2]
[352582686,1739178650278,-500.0,0.00011917,2]
[352582687,1739178650287,-500.0,0.00011917,2]
[352582688,1739178650296,-500.0,0.00011917,2]
[352582689,1739178650305,-500.0,0.00011917,2]
[352582690,1739178650315,-206.54,0.00011917,2]
[352582691,1739178650324,-500.0,0.00011917,2]
[352582692,1739178650333,-500.0,0.00011917,2]
[352582693,1739178650343,-500.0,0.00011917,2]
[352582694,1739178650352,-500.0,0.00011917,2]
[352582695,1739178650361,-742.11,0.00011917,2]
[352582696,1739178650371,-500.0,0.00011917,2]
[352582697,1739178650380,-500.0,0.00011917,2]
[352582698,1739178650389,-500.0,0.00011917,2]
[352582699,1739178650398,-858.14,0.00011917,2]
[352582700,1739178650408,-629.21288575,0.00011917,2]
[352582701,1739178650417,-537.94,0.00011917,2]
[352582702,1739178650426,-617.4,0.00011917,2]
[352582703,1739178650435,-500.0,0.00011917,2]
[352582704,1739178650445,-1006.77,0.00011917,2]
[352582705,1739178650454,-19548.37,0.00011917,2]
[352582706,1739178650463,-560.17,0.00011917,2]
[352582707,1739178650472,-1383.92,0.00011917,2]
[352582708,1739178650482,-923.08,0.00011917,2]
[352582709,1739178650491,-500.0,0.00011917,2]
[352582710,1739178650501,-2923.13,0.00011917,2]
[352582711,1739178650511,-500.0,0.00011917,2]
[352582712,1739178650522,-500.0,0.00011917,2]
[352582713,1739178650531,-1416.35,0.00011917,2]
[352582714,1739178650540,-716.41,0.00011917,2]
[352582715,1739178650549,-477.84,0.00011917,2]
[352582716,1739178650558,-500.0,0.00011917,2]
[352582717,1739178650567,-634.51,0.00011917,2]
[352582718,1739178650576,-506.21,0.00011917,2]
[352582719,1739178650585,-1331.53,0.00011917,2]
[352582720,1739178650595,-604.57,0.00011917,2]
[352582721,1739178650605,-500.0,0.00011917,2]
[352582722,1739178650615,-568.08,0.00011917,2]
[352582723,1739178650626,-500.0,0.00011917,2]
[352582724,1739178650636,-756.28,0.00011917,2]
[352582725,1739178650646,-7225.64,0.00011917,2]
[352582726,1739178650656,-500.0,0.00011917,2]
[352582727,1739178650665,-863.77,0.00011917,2]
[352582728,1739178650675,-904.08,0.00011917,2]
[352582729,1739178650685,-1490.65,0.00011917,2]
[352582730,1739178650695,-500.0,0.00011917,2]
[352582731,1739178650704,-1689.31,0.00011917,2]
[352582732,1739178650714,-520.59,0.00011917,2]
[352582733,1739178650724,-754.98,0.00011917,2]
[352582734,1739178650736,-500.0,0.00011917,2]
[352582735,1739178650746,-2892.98,0.00011917,2]
[352582736,1739178650756,-1568.35,0.00011917,2]
[352582737,1739178650766,-5541.94,0.00011917,2]
[352582738,1739178650776,-1220.88,0.00011917,2]
[352582739,1739178650785,-175.33706479,0.00011954,2]
[352582740,1739178650795,-508.44500603,0.00012004,2]
[352582741,1739178650804,-1000.0,0.00012004,2]
[352582742,1739178650815,-500.0,0.00012054,2]
[352582743,1739178650824,-500.0,0.00012054,2]
[352582744,1739178650835,-500.0,0.00012054,2]
[352582745,1739178650845,-500.0,0.00012054,2]
[352582746,1739178650854,-558.17,0.00012054,2]
[352582747,1739178650864,-500.0,0.00012054,2]
[352582748,1739178650874,-500.0,0.00012054,2]
[352582749,1739178650884,-500.0,0.00012054,2]
[352582750,1739178650893,-500.0,0.00012054,2]
[352582751,1739178650904,-500.0,0.00012054,2]
[352582752,1739178650913,-500.0,0.00012054,2]
[352582753,1739178650923,-500.0,0.00012054,2]
[352582754,1739178650933,-500.0,0.00012054,2]
[352582755,1739178650944,-742.11,0.00012054,2]
[352582756,1739178650953,-314.91390867,0.00012054,2]
[352582757,1739178650963,-500.0,0.00012054,2]
[352582758,1739178650972,-500.0,0.00012054,2]
[352582759,1739178650983,-858.14,0.00012054,2]
[352582760,1739178650992,-537.94,0.00012054,2]
[352582761,1739178651003,-617.4,0.00012054,2]
[352582762,1739178651018,-500.0,0.00012054,2]
[352582763,1739178651029,-1006.77,0.00012054,2]
[352582764,1739178651038,-19548.37,0.00012054,2]
[352582765,1739178651048,-560.17,0.00012054,2]
[352582766,1739178651059,-1383.92,0.00012054,2]
[352582767,1739178651068,-923.08,0.00012054,2]
[352582768,1739178651078,-500.0,0.00012054,2]
[352582769,1739178651088,-2923.13,0.00012054,2]
[352582770,1739178651099,-500.0,0.00012054,2]
[352582771,1739178651108,-500.0,0.00012054,2]
[352582772,1739178651118,-1416.35,0.00012054,2]
[352582773,1739178651127,-716.41,0.00012054,2]
[352582774,1739178651137,-500.0,0.00012054,2]
[352582775,1739178651146,-634.51,0.00012054,2]
[352582776,1739178651156,-506.21,0.00012054,2]
[352582777,1739178651165,-1331.53,0.00012054,2]
[352582778,1739178651175,-604.57,0.00012054,2]
[352582779,1739178651185,-500.0,0.00012054,2]
[352582780,1739178651195,-568.08,0.00012054,2]
[352582781,1739178651205,-500.0,0.00012054,2]
[352582782,1739178651215,-756.28,0.00012054,2]
[352582783,1739178651224,-7225.64,0.00012054,2]
[352582784,1739178651237,-500.0,0.00012054,2]
[352582785,1739178651246,-863.77,0.00012054,2]
[352582786,1739178651256,-904.08,0.00012054,2]
[352582787,1739178651265,-1490.65,0.00012054,2]
[352582788,1739178651275,-500.0,0.00012054,2]
[352582789,1739178651284,-1689.31,0.00012054,2]
[352582790,1739178651294,-520.59,0.00012054,2]
[352582791,1739178651303,-754.98,0.00012054,2]
[352582792,1739178651313,-500.0,0.00012054,2]
[352582793,1739178651323,-2892.98,0.00012054,2]
[352582794,1739178651332,-1568.35,0.00012054,2]
[352582795,1739178651342,-5541.94,0.00012054,2]
[352582796,1739178651351,-1220.88,0.00012054,2]
[352582797,1739178651360,-500.0,0.00012191,2]
[352582798,1739178651370,-500.0,0.00012191,2]
[352582799,1739178651379,-500.0,0.00012191,2]
[352582800,1739178651388,-575.26019354,0.00012191,2]
[352582801,1739178651397,-558.17,0.00012191,2]
[352582802,1739178651409,-500.0,0.00012191,2]
[352582803,1739178651418,-500.0,0.00012191,2]
[352582804,1739178651428,-500.0,0.00012191,2]
[352582805,1739178651438,-500.0,0.00012191,2]
[352582806,1739178651447,-500.0,0.00012191,2]
[352582807,1739178651456,-270.39,0.00012191,2]
[352582808,1739178651475,-500.0,0.00012191,2]
[352582809,1739178651486,-500.0,0.00012191,2]
[352582810,1739178651495,-742.11,0.00012191,2]
[352582811,1739178651505,-500.0,0.00012191,2]
[352582812,1739178651515,-500.0,0.00012191,2]
[352582813,1739178651525,-858.14,0.00012191,2]
[352582814,1739178651535,-537.94,0.00012191,2]
[352582815,1739178651545,-617.4,0.00012191,2]
[352582816,1739178651555,-500.0,0.00012191,2]
[352582817,1739178651564,-1006.77,0.00012191,2]
[352582818,1739178651574,-19548.37,0.00012191,2]
[352582819,1739178651583,-560.17,0.00012191,2]
[352582820,1739178651593,-1383.92,0.00012191,2]
[352582821,1739178651603,-923.08,0.00012191,2]
[352582822,1739178651612,-500.0,0.00012191,2]
[352582823,1739178651622,-2923.13,0.00012191,2]
[352582824,1739178651631,-500.0,0.00012191,2]
[352582825,1739178651641,-562.18,0.00012191,2]
[352582826,1739178651651,-1416.35,0.00012191,2]
[352582827,1739178651660,-716.41,0.00012191,2]
[352582828,1739178651669,-281.80556329,0.00012191,2]
[352582829,1739178651678,-634.51,0.00012191,2]
[352582830,1739178651687,-506.21,0.00012191,2]
[352582831,1739178651696,-1331.53,0.00012191,2]
[352582832,1739178651827,-604.57,0.00012191,2]
[352582833,1739178651838,-500.0,0.00012191,2]
[352582834,1739178651848,-568.08,0.00012191,2]
[352582835,1739178651858,-500.0,0.00012191,2]
[352582836,1739178651868,-756.28,0.00012191,2]
[352582837,1739178651878,-7225.64,0.00012191,2]
[352582838,1739178651888,-500.0,0.00012191,2]
[352582839,1739178651897,-863.77,0.00012191,2]
[352582840,1739178651907,-904.08,0.00012191,2]
[352582841,1739178651917,-1490.65,0.00012191,2]
[352582842,1739178651927,-500.0,0.00012191,2]
[352582843,1739178651937,-1689.31,0.00012191,2]
[352582844,1739178651947,-520.59,0.00012191,2]
[352582845,1739178651958,-151.0,0.00012191,2]
[352582846,1739178651968,-754.98,0.00012191,2]
[352582847,1739178651978,-500.0,0.00012191,2]
[352582848,1739178651987,-2892.98,0.00012191,2]
[352582849,1739178651998,-1568.35,0.00012191,2]
[352582850,1739178652011,-5541.94,0.00012191,2]
[352582851,1739178652021,-1220.88,0.00012191,2]
[352582852,1739178652031,-151.0,0.000122,2]
[352582853,1739178652041,-500.0,0.00012328,2]
[352582854,1739178652051,-500.0,0.00012328,2]
[352582855,1739178652061,-500.0,0.00012328,2]
[352582856,1739178652070,-558.17,0.00012328,2]
[352582857,1739178652080,-500.0,0.00012328,2]
[352582858,1739178652091,-632.82,0.00012328,2]
[352582859,1739178652100,-545.35,0.00012328,2]
[352582860,1739178652110,-500.0,0.00012328,2]
[352582861,1739178652119,-500.0,0.00012328,2]
[352582862,1739178652128,-500.0,0.00012328,2]
[352582863,1739178652137,-500.0,0.00012328,2]
[352582864,1739178652147,-742.11,0.00012328,2]
[352582865,1739178652157,-500.0,0.00012328,2]
[352582866,1739178652171,-500.0,0.00012328,2]
[352582867,1739178652184,-858.14,0.00012328,2]
[352582868,1739178652194,-537.94,0.00012328,2]
[352582869,1739178652203,-617.4,0.00012328,2]
[352582870,1739178652213,-500.0,0.00012328,2]
[352582871,1739178652223,-1006.77,0.00012328,2]
[352582872,1739178652233,-19548.37,0.00012328,2]
[352582873,1739178652243,-560.17,0.00012328,2]
[352582874,1739178652253,-1383.92,0.00012328,2]
[352582875,1739178652262,-923.08,0.00012328,2]
[352582876,1739178652272,-500.0,0.00012328,2]
[352582877,1739178652282,-2923.13,0.00012328,2]
[352582878,1739178652291,-500.0,0.00012328,2]
[352582879,1739178652301,-1416.35,0.00012328,2]
[352582880,1739178652311,-716.41,0.00012328,2]
[352582881,1739178652321,-634.51,0.00012328,2]
[352582882,1739178652331,-506.21,0.00012328,2]
[352582883,1739178652345,-1331.53,0.00012328,2]
[352582884,1739178652355,-604.57,0.00012328,2]
[352582885,1739178652365,-500.0,0.00012328,2]
[352582886,1739178652375,-568.08,0.00012328,2]
[352582887,1739178652385,-220.901933,0.00012328,2]
[352582888,1739178652395,-500.0,0.00012328,2]
[352582889,1739178652407,-220.901933,0.00012328,2]
[352582890,1739178652417,-756.28,0.00012328,2]
[352582891,1739178652427,-7225.64,0.00012328,2]
[352582892,1739178652437,-500.0,0.00012328,2]
[352582893,1739178652448,-863.77,0.00012328,2]
[352582894,1739178652459,-904.08,0.00012328,2]
[352582895,1739178652470,-1490.65,0.00012328,2]
[352582896,1739178652480,-406.56,0.00012328,2]
[352582897,1739178652490,-1689.31,0.00012328,2]
[352582898,1739178652500,-520.59,0.00012328,2]
[352582899,1739178652510,-151.0,0.00012328,2]
[352582900,1739178652519,-754.98,0.00012328,2]
[352582901,1739178652529,-500.0,0.00012328,2]
[352582902,1739178652540,-2892.98,0.00012328,2]
[352582903,1739178652549,-1568.35,0.00012328,2]
[352582904,1739178652559,-5541.94,0.00012328,2]
[352582905,1739178652569,-223.377237,0.00012328,2]
[352582906,1739178652578,-1220.88,0.00012328,2]
[352582907,1739178652588,-395.56,0.00012465,2]
[352582908,1739178652597,-500.0,0.00012465,2]
[352582909,1739178652607,-500.0,0.00012465,2]
[352582910,1739178652616,-558.17,0.00012465,2]
[352582911,1739178652626,-500.0,0.00012465,2]
[352582912,1739178652636,-245.73943482,0.00012465,2]
[352582913,1739178652645,-500.0,0.00012465,2]
[352582914,1739178652654,-500.0,0.00012465,2]
[352582915,1739178652664,-151.0,0.00012465,2]
[352582916,1739178652674,-500.0,0.00012465,2]
[352582917,1739178652683,-742.11,0.00012465,2]
[352582918,1739178652692,-379.71,0.00012465,2]
[352582919,1739178652702,-151.0,0.00012465,2]
[352582920,1739178652712,-151.0,0.00012465,2]
[352582921,1739178652721,-151.0,0.00012465,2]
[352582922,1739178652731,-500.0,0.00012465,2]
[352582923,1739178652740,-858.14,0.00012465,2]
[352582924,1739178652750,-537.94,0.00012465,2]
[352582925,1739178652759,-617.4,0.00012465,2]
[352582926,1739178652769,-500.0,0.00012465,2]
[352582927,1739178652779,-1006.77,0.00012465,2]
[352582928,1739178652789,-151.0,0.00012465,2]
[352582929,1739178652798,-151.0,0.00012465,2]
[352582930,1739178652808,-19548.37,0.00012465,2]
[352582931,1739178652817,-560.17,0.00012465,2]
[352582932,1739178652827,-1383.92,0.00012465,2]
[352582933,1739178652837,-923.08,0.00012465,2]
[352582934,1739178652847,-500.0,0.00012465,2]
[352582935,1739178652857,-2923.13,0.00012465,2]
[352582936,1739178652867,-500.0,0.00012465,2]
[352582937,1739178652876,-1416.35,0.00012465,2]
[352582938,1739178652886,-151.0,0.00012465,2]
[352582939,1739178652896,-151.0,0.00012465,2]
[352582940,1739178652905,-716.41,0.00012465,2]
[352582941,1739178652915,-634.51,0.00012465,2]
[352582942,1739178652924,-506.21,0.00012465,2]